fUSD/lending_fUSD_20250329
["ID","MTS","AMOUNT","RATE_DAILY","PERIOD"]
[356813323,1743238247322,-596.13,0.00044109,30]
[356813324,1743238247332,-1649.88,0.00044109,30]
[356813325,1743238247341,-500.0,0.00044149,30]
[356813326,1743238247351,-247.77,0.00044165,2]
[356813327,1743238247360,-179.11,0.00044239,2]
[356813328,1743238247369,-939.0,0.00044359,30]
[356813329,1743238247379,-17473.0551467,0.00044373,3]
[356813330,1743238247389,-2345.84,0.00044382,30]
[356813331,1743238247399,-500.0,0.00044382,30]
[356813332,1743238247408,-1464.95,0.00044382,30]
[356813333,1743238247418,-2155.0,0.00044382,30]
[356813334,1743238247427,-500.0,0.00044382,30]
[356813335,1743238247437,-428.1915544,0.00044383,30]
[356813336,1743238247446,-634.48,0.00044383,7]
[356813337,1743238247456,-524.68,0.00044383,30]
[356813338,1743238247465,-570.3,0.00044383,30]
[356813339,1743238247475,-769.84,0.00044383,30]
[356813340,1743238247484,-861.28,0.00044383,30]
[356813341,1743238247494,-500.0,0.00044383,30]
[356813342,1743238247504,-596.13,0.00044383,30]
[356813343,1743238247513,-1649.88,0.00044383,30]
[356813344,1743238247523,-683.71214156,0.00044603,15]
[356813345,1743238247533,-500.0,0.0004464,30]
[356813346,1743238247543,-21613.1441882,0.00044647,3]
[356813347,1743238247553,-17473.0551467,0.00044647,3]
[356813348,1743238247563,-2345.84,0.00044656,30]
[356813349,1743238247572,-342.08564333,0.00044656,30]
[356813350,1743238247582,-1464.95,0.00044656,30]
[356813351,1743238247592,-2155.0,0.00044656,30]
[356813352,1743238247602,-500.0,0.00044656,30]
[356813353,1743238247612,-634.48,0.00044657,7]
[356813354,1743238247622,-524.68,0.00044657,30]
[356813355,1743238247633,-570.3,0.00044657,30]
[356813356,1743238247643,-769.84,0.00044657,30]
[356813357,1743238247652,-861.28,0.00044657,30]
[356813358,1743238247662,-333.72,0.00044657,30]
[356813359,1743238247672,-596.13,0.00044657,30]
[356813360,1743238247681,-1649.88,0.00044657,30]
[356813361,1743238247691,-939.0,0.00044812,30]
[356813362,1743238247706,-2345.84,0.0004493,30]
[356813363,1743238247716,-1464.95,0.0004493,30]
[356813364,1743238247726,-2155.0,0.0004493,30]
[356813365,1743238247735,-500.0,0.0004493,30]
[356813366,1743238247746,-634.48,0.00044931,7]
[356813367,1743238247755,-524.68,0.00044931,30]
[356813368,1743238247765,-570.3,0.00044931,30]
[356813369,1743238247776,-769.84,0.00044931,30]
[356813370,1743238247786,-861.28,0.00044931,30]
[356813371,1743238247796,-596.13,0.00044931,30]
[356813372,1743238247806,-1649.88,0.00044931,30]
[356813373,1743238247815,-2512.0,0.00045,3]
[356813374,1743238247824,-443.16055158,0.00045,2]
[356813375,1743238247833,-3112.0,0.00045,120]
[356813376,1743238247843,-21613.1441882,0.00045185,3]
[356813377,1743238247852,-17473.0551467,0.00045185,3]
[356813378,1743238247861,-2345.84,0.00045204,30]
[356813379,1743238247870,-1464.95,0.00045204,30]
[356813380,1743238247881,-2155.0,0.00045204,30]
[356813381,1743238247890,-500.0,0.00045204,30]
[356813382,1743238247899,-500.0,0.00045205,7]
[356813383,1743238247909,-634.48,0.00045205,7]
[356813384,1743238247919,-524.68,0.00045205,30]
[356813385,1743238247928,-570.3,0.00045205,30]
[356813386,1743238247937,-769.84,0.00045205,30]
[356813387,1743238247946,-861.28,0.00045205,30]
[356813388,1743238247955,-596.13,0.00045205,30]
[356813389,1743238247965,-1649.88,0.00045205,30]
[356813390,1743238247974,-939.0,0.00045265,30]
[356813391,1743238247984,-372.25972146,0.00045265,30]
[356813392,1743238247993,-17473.0551467,0.00045469,3]
[356813393,1743238248004,-2345.84,0.00045478,120]
[356813394,1743238248014,-1464.95,0.00045478,120]
[356813395,1743238248024,-2155.0,0.00045478,120]
[356813396,1743238248033,-563.38361736,0.00045478,120]
[356813397,1743238248043,-634.48,0.00045479,7]
[356813398,1743238248053,-524.68,0.00045479,100]
[356813399,1743238248065,-570.5200492,0.00045479,120]
[356813400,1743238248075,-769.84,0.00045479,120]
[356813401,1743238248085,-861.28,0.00045479,120]
[356813402,1743238248094,-596.13,0.00045479,120]
[356813403,1743238248104,-1649.88,0.00045479,120]
[356813404,1743238248115,-939.0,0.00045717,30]
[356813405,1743238248124,-500.0,0.00045727,30]
[356813406,1743238248135,-2345.84,0.00045752,120]
[356813407,1743238248145,-1464.95,0.00045752,120]
[356813408,1743238248155,-2155.0,0.00045752,120]
[356813409,1743238248164,-500.0,0.00045753,10]
[356813410,1743238248174,-634.58827363,0.00045753,7]
[356813411,1743238248184,-524.90070445,0.00045753,100]
[356813412,1743238248195,-769.87841157,0.00045753,120]
[356813413,1743238248206,-500.0,0.00045753,30]
[356813414,1743238248216,-861.29894903,0.00045753,120]
[356813415,1743238248226,-596.2951378,0.00045753,120]
[356813416,1743238248236,-1649.9412189,0.00045753,120]
[356813417,1743238248246,-500.0,0.00045759,30]
[356813418,1743238248256,-1077.01219821,0.000458,120]
[356813419,1743238248267,-21613.1441882,0.00045957,3]
[356813420,1743238248278,-1911.07716655,0.00045981,2]
[356813421,1743238248287,-683.71214156,0.00045989,15]
[356813422,1743238248297,-2346.07720673,0.00046026,120]
[356813423,1743238248306,-1465.13374984,0.00046026,120]
[356813424,1743238248316,-2155.13607072,0.00046026,120]
[356813425,1743238248326,-153.0,0.00046027,90]
[356813426,1743238248335,-153.0,0.00046027,90]
[356813427,1743238248346,-939.0,0.0004617,30]
[356813428,1743238248356,-500.0,0.00046301,13]
[356813429,1743238248367,-247.77,0.00046428,2]
[356813430,1743238248376,-939.0,0.00046622,30]
[356813431,1743238248386,-500.0,0.00046849,16]
[356813432,1743238248396,-683.71214156,0.00047375,15]
[356813433,1743238248406,-500.0,0.00047397,19]
[356813434,1743238248415,-506.255,0.00047706,81]
[356813435,1743238248426,-178.34399956,0.00047845,29]
[356813436,1743238248437,-1000.0,0.00047866,2]
[356813437,1743238248447,-17473.0551467,0.00047925,4]
[356813438,1743238248457,-500.0,0.00047945,22]
[356813439,1743238248469,-563.05398544,0.00048493,25]
[356813440,1743238248479,-247.77,0.00048692,2]
[356813441,1743238248489,-370.2666895,0.000488,5]
[356813442,1743238248500,-500.0,0.00048809,120]
[356813443,1743238248510,-629.46,0.00049137,2]
[356813444,1743238248520,-500.0,0.00049164,120]
[356813445,1743238248531,-500.0,0.00049164,120]
[356813446,1743238248541,-21613.1441882,0.00049295,4]
[356813447,1743238248552,-17473.0551467,0.00049295,4]
[356813448,1743238248562,-3000.0,0.00049315,120]
[356813449,1743238248573,-3000.0,0.00049315,120]
[356813450,1743238248583,-3000.0,0.00049315,120]
[356813451,1743238248593,-3000.0,0.00049315,120]
[356813452,1743238248603,-3000.0,0.00049315,120]
[356813453,1743238248615,-3000.0,0.00049315,120]
[356813454,1743238248626,-3000.0,0.00049315,120]
[356813455,1743238248636,-2929.72179935,0.00049315,120]
[356813456,1743238248647,-3920.57126463,0.00049678,60]
[356813457,1743238248658,-17473.0551467,0.00049702,4]
[356813458,1743238248669,-500.0,0.00049712,120]
[356813459,1743238248679,-500.0,0.00049712,120]
[356813460,1743238248689,-21613.1441882,0.0004988,4]
[356813461,1743238248704,-17473.0551467,0.0004988,4]
[356813462,1743238248714,-150.0,0.00049889,120]
[356813463,1743238248725,-43226.2883763,0.0004989,4]
[356813464,1743238248735,-17473.0551467,0.0004989,4]
[356813465,1743238248747,-61325.91555947,0.000499,120]
[356813466,1743238248757,-21613.1441882,0.0004997,4]
[356813467,1743238248767,-34946.1102934,0.0004997,4]
[356813468,1743238248778,-43226.2883763,0.0004998,4]
[356813469,1743238248788,-34946.1102934,0.0004998,4]
[356813470,1743238248798,-500.0,0.00049989,120]
[356813471,1743238248809,-157257.49632,0.0004999,4]
[356813472,1743238248819,-500.0,0.00049999,120]
[356813473,1743238248829,-500.0,0.00049999,120]
[356813474,1743238248839,-150.0,0.00049999,120]
[356813475,1743238248849,-2453.16,0.0005,30]
[356813476,1743238248859,-3646.0,0.0005,5]
[356813477,1743238248870,-287250.9,0.0005,120]
[356813478,1743238248880,-179.11,0.00050036,2]
[356813479,1743238248891,-259.05073481,0.0005026,120]
[356813480,1743238248901,-500.0,0.0005026,120]
[356813481,1743238248911,-500.0,0.00050808,120]
[356813482,1743238248921,-237.60023456,0.000509,2]
[356813483,1743238248930,-18675.56813685,0.000509,2]
[356813484,1743238248939,-361.81518296,0.000509,2]
[356813485,1743238248949,-3719.30428824,0.000509,30]
[356813486,1743238248960,-247.77,0.00050956,2]
[356813487,1743238248969,-17473.0551467,0.0005099,4]
[356813488,1743238248979,-500.0,0.00050999,120]
[356813489,1743238248989,-500.0,0.00050999,120]
[356813490,1743238248999,-500.0,0.00050999,120]
[356813491,1743238249008,-516.69469186,0.00050999,120]
[356813492,1743238249019,-150.0,0.00050999,120]
[356813493,1743238249029,-150.0,0.00050999,120]
[356813494,1743238249039,-150.0,0.00050999,120]
[356813495,1743238249049,-279585.64840127,0.00051,120]
[356813496,1743238249063,-168501.96000062,0.00051,120]
[356813497,1743238249075,-646.59616439,0.00051,120]
[356813498,1743238249086,-2839.47911004,0.00051,120]
[356813499,1743238250624,-160.65,0.000279,2]
[356813500,1743238250634,-126.3017768,0.00048761,15]
[356813501,1743238250646,-336.068,0.00048761,15]
[356813529,1743239431503,-203.88,0.000154,2]
[356813530,1743239431513,-250.0,0.00020348,2]
[356813531,1743239431523,-157.83,0.00026849,2]
[356813532,1743239431765,-157.83,0.00032646,2]
[356813533,1743239431776,-157.83,0.00038443,2]
[356813534,1743239431786,-500.0,0.00039724,7]
[356813535,1743239431795,-500.0,0.00039998,7]
[356813536,1743239431804,-303.753,0.00039998,56]
[356813537,1743239431814,-1710.07053237,0.0004,2]
[356813538,1743239431825,-804.79,0.0004,2]
[356813539,1743239431837,-2650.31856258,0.0004,2]
[356813540,1743239431848,-817.95282766,0.0004,2]
[356813541,1743239431859,-2326.65286154,0.0004,2]
[356813542,1743239431871,-69723.17521585,0.0004,2]
[356813543,1743239431880,-78032.96,0.0004,2]
[356813544,1743239431890,-78032.96,0.0004,2]
[356813545,1743239431899,-200.0,0.00040175,2]
[356813546,1743239431909,-200.0,0.00040175,2]
[356813547,1743239431918,-200.0,0.00040175,2]
[356813548,1743239431928,-200.0,0.00040175,2]
[356813549,1743239431937,-200.0,0.00040175,2]
[356813550,1743239431947,-200.0,0.00040175,2]
[356813551,1743239431956,-200.0,0.00040175,2]
[356813552,1743239431966,-338.0,0.00040175,2]
[356813553,1743239431975,-7414.18,0.00040271,2]
[356813554,1743239431988,-500.0,0.00040272,7]
[356813555,1743239431998,-164.51,0.00040291,2]
[356813556,1743239432007,-680.0,0.000404,30]
[356813557,1743239432017,-7414.18,0.00040545,2]
[356813558,1743239432027,-500.0,0.00040546,7]
[356813559,1743239432036,-800.39,0.000406,2]
[356813560,1743239432046,-253.2,0.000406,2]
[356813561,1743239432055,-7414.18,0.00040819,2]
[356813562,1743239432066,-500.0,0.0004082,7]
[356813563,1743239432079,-7414.18,0.00041093,2]
[356813564,1743239432089,-500.0,0.00041094,7]
[356813565,1743239432098,-7414.18,0.00041367,2]
[356813566,1743239432108,-510.39,0.00041368,7]
[356813567,1743239432118,-21839.7773247,0.0004139,3]
[356813568,1743239432128,-78032.96,0.000414,2]
[356813569,1743239432137,-7414.18,0.00041641,2]
[356813570,1743239432149,-7414.18,0.00041915,2]
[356813571,1743239432158,-7414.18,0.00042189,2]
[356813572,1743239432167,-7414.18,0.00042463,2]
[356813573,1743239432176,-208.0,0.0004252,2]
[356813574,1743239432186,-7414.18,0.00042737,2]
[356813575,1743239432197,-500.0,0.00042775,10]
[356813576,1743239432207,-7414.18,0.00043011,2]
[356813577,1743239432217,-168.88,0.00043178,2]
[356813578,1743239432226,-7414.18,0.00043285,2]
[356813579,1743239432236,-150.0,0.00043324,2]
[356813580,1743239432245,-7414.18,0.00043559,2]
[356813581,1743239432254,-7414.18,0.00043833,2]
[356813582,1743239432264,-792.0,0.00043907,30]
[356813583,1743239432274,-301.63745312,0.0004397,3]
[356813584,1743239432282,-150.0,0.00044,57]
[356813585,1743239432292,-963.31,0.00044,2]
[356813586,1743239432302,-3000.0,0.00044,2]
[356813587,1743239432311,-567.98,0.00044,2]
[356813588,1743239432321,-1000.0,0.00044,13]
[356813589,1743239432330,-7414.18,0.00044107,2]
[356813590,1743239432340,-157.83,0.00044239,2]
[356813591,1743239432349,-208.0,0.0004426,30]
[356813592,1743239432359,-792.0,0.00044359,30]
[356813593,1743239432368,-7414.18,0.00044381,2]
[356813594,1743239432377,-166.66,0.00044424,2]
[356813595,1743239432387,-7414.18,0.00044655,2]
[356813596,1743239432396,-188.57,0.00044667,2]
[356813597,1743239432406,-792.0,0.00044812,30]
[356813598,1743239432415,-7414.18,0.00044929,2]
[356813599,1743239432424,-7414.18,0.00045203,2]
[356813600,1743239432434,-792.0,0.00045265,30]
[356813601,1743239432443,-314.10595187,0.00045265,30]
[356813602,1743239432452,-7414.18,0.00045477,2]
[356813603,1743239432461,-792.0,0.00045717,30]
[356813604,1743239432471,-7414.18,0.00045751,2]
[356813605,1743239432480,-200.0,0.00045871,2]
[356813606,1743239432489,-166.66,0.00045891,2]
[356813607,1743239432498,-1000.0,0.00046,2]
[356813608,1743239432508,-1000.0,0.00046,13]
[356813609,1743239432517,-1000.0,0.00046,15]
[356813610,1743239432526,-208.0,0.0004601,30]
[356813611,1743239432535,-7414.18,0.00046025,2]
[356813612,1743239432544,-293.28,0.00046057,2]
[356813613,1743239432554,-6014.83,0.00046095,2]
[356813614,1743239432563,-792.0,0.0004617,30]
[356813615,1743239432573,-250.0,0.00046174,2]
[356813616,1743239432582,-224.25,0.0004624,2]
[356813617,1743239432591,-7414.18,0.00046299,2]
[356813618,1743239432601,-300.0,0.0004637,3]
[356813619,1743239432610,-1000.0,0.000465,2]
[356813620,1743239432619,-7414.25361533,0.00046573,2]
[356813621,1743239432629,-792.0,0.00046622,30]
[356813622,1743239432638,-1478.07726705,0.00046645,15]
[356813623,1743239432647,-43679.5546493,0.0004669,3]
[356813624,1743239432657,-78032.96,0.000467,2]
[356813625,1743239432666,-150.0,0.00046745,7]
[356813626,1743239432675,-188.57,0.0004693,2]
[356813627,1743239432685,-1911.07716655,0.00046992,2]
[356813628,1743239432694,-876.0,0.00047,15]
[356813629,1743239432703,-1478.07726703,0.00047229,15]
[356813630,1743239432713,-1236.0,0.000473,7]
[356813631,1743239432722,-166.66,0.00047357,2]
[356813632,1743239432731,-300.0,0.0004747,3]
[356813633,1743239432741,-208.0,0.0004776,30]
[356813634,1743239432750,-1478.07726703,0.00047813,15]
[356813635,1743239432759,-493.0,0.00048,25]
[356813636,1743239432769,-1000.0,0.00048,16]
[356813637,1743239432778,-1002.0,0.00048,12]
[356813638,1743239432788,-1478.07726703,0.00048397,15]
[356813639,1743239432798,-166.077,0.00048761,30]
[356813640,1743239432808,-166.66,0.00048824,2]
[356813641,1743239432817,-1478.07726703,0.00048981,15]
[356813643,1743239432826,-200.04622922,0.00049164,120]
[356813644,1743239432837,-188.57,0.00049194,2]
[356813645,1743239432847,-200.0,0.00049219,2]
[356813646,1743239432867,-1000.0,0.00049301,2]
[356813647,1743239432878,-150.7605136,0.00049427,4]
[356813648,1743239432888,-208.0,0.0004951,30]
[356813649,1743239432897,-1478.07726703,0.00049564,15]
[356813650,1743239432907,-230.03834499,0.0004969,39]
[356813651,1743239432916,-230.0,0.000497,40]
[356813652,1743239432926,-732.80854724,0.00049899,22]
[356813653,1743239432935,-954.98910195,0.000499,8]
[356813654,1743239432945,-21839.7773247,0.0004997,4]
[356813655,1743239432955,-158.61762655,0.00049973,7]
[356813656,1743239432964,-10054.66390342,0.0004998,25]
[356813657,1743239432974,-152.49,0.0004998,2]
[356813658,1743239432984,-152.49,0.0004998,2]
[356813659,1743239432993,-262077.327896,0.0004999,4]
[356813660,1743239433003,-78901.104822,0.0004999,4]
[356813661,1743239433018,-142302.496919,0.0004999,4]
[356813662,1743239433028,-152.49,0.0004999,120]
[356813663,1743239433038,-200.0,0.00049999,7]
[356813664,1743239433050,-484.84428046,0.00049999,2]
[356813665,1743239433061,-500.0,0.00049999,120]
[356813666,1743239433075,-150.0,0.00049999,120]
[356813667,1743239433085,-500.0,0.00049999,7]
[356813668,1743239433095,-374049.06525245,0.0005,120]
[356813670,1743239437493,-673.66599999,0.0003825,2]
[356813671,1743239437651,-1578.14543301,0.0003825,2]
[356813672,1743239437662,-504.63823671,0.00040174,2]
[356813673,1743239437673,-28185.58928894,0.0005,120]
[356813750,1743239439705,-372.50946649,0.00046992,2]
[356813751,1743239439758,-169.8054149,0.00046992,2]
[356813752,1743239439770,-6548.7545851,0.0005,120]
[356813753,1743239439917,-43592.84152678,0.0005,120]
[356813754,1743239439970,-5837.0,0.0005,120]
[356813755,1743239439983,-1230.58441544,0.0005,120]
[356813756,1743239440024,-1435.7055609,0.0005,120]
[356813757,1743239440131,-20727.23271102,0.0005,120]
[356813758,1743239440144,-1728.77262585,0.0005,120]
[356813759,1743239440156,-493.98587737,0.0005,120]
[356813760,1743239440183,-363.68705562,0.0005,120]
[356813810,1743239442710,-500.0,0.00040174,2]
[356813811,1743239442720,-500.0,0.00046699,2]
[356813812,1743239442729,-500.0,0.00049989,2]
[356813813,1743239442738,-500.0,0.00049989,2]
[356813814,1743239442748,-500.0,0.00049999,2]
[356813815,1743239442757,-500.0,0.00049999,2]
[356813816,1743239442767,-70322.31110053,0.0005,120]
[356813817,1743239442776,-1013.0,0.0005,120]
[356813818,1743239442786,-157.83,0.00050036,2]
[356813819,1743239442795,-1478.07726703,0.00050148,15]
[356813820,1743239442805,-500.89280294,0.0005025,7]
[356813821,1743239442815,-21839.7773247,0.00050263,4]
[356813822,1743239442825,-200.0,0.00050273,7]
[356813823,1743239442835,-500.0,0.00050273,120]
[356813824,1743239442845,-500.0,0.00050273,7]
[356813825,1743239442854,-166.66,0.0005029,2]
[356813826,1743239442864,-1065.0,0.0005035,30]
[356813827,1743239442873,-14746.9067828,0.0005049,4]
[356813828,1743239442882,-152.49,0.0005049,120]
[356813829,1743239442892,-19789.78663885,0.000505,2]
[356813830,1743239442902,-305.78,0.00050547,7]
[356813831,1743239442911,-500.0,0.00050547,120]
[356813832,1743239442921,-500.0,0.00050547,7]
[356813833,1743239442931,-690.0,0.000507,42]
[356813834,1743239442942,-1478.07726703,0.00050732,15]
[356813835,1743239442951,-500.0,0.0005081,2]
[356813836,1743239442961,-21839.7773247,0.00050811,4]
[356813837,1743239442970,-240.0,0.00050821,5]
[356813838,1743239442980,-500.0,0.00050821,120]
[356813839,1743239442990,-500.0,0.00050821,7]
[356813840,1743239443000,-14746.9067828,0.0005087,4]
[356813841,1743239443009,-5000.0,0.0005088,120]
[356813842,1743239443019,-1077.3403,0.0005089,120]
[356813843,1743239443028,-158.40015636,0.000509,2]
[356813844,1743239443037,-218.0180506,0.000509,2]
[356813845,1743239443047,-12450.3787579,0.000509,2]
[356813846,1743239443057,-2479.53619216,0.000509,30]
[356813847,1743239443069,-21839.7773247,0.0005097,4]
[356813848,1743239443082,-29493.8135655,0.0005097,4]
[356813849,1743239443092,-152.49,0.0005098,120]
[356813850,1743239443102,-43679.5546493,0.0005098,4]
[356813851,1743239443112,-44240.7203483,0.0005098,4]
[356813852,1743239443123,-150.0,0.00050989,120]
[356813853,1743239443132,-500.0,0.00050989,2]
[356813854,1743239443142,-43679.5546493,0.0005099,4]
[356813855,1743239443153,-73358.3005822,0.0005099,4]
[356813858,1743239444688,-4610.2177599,0.0005099,4]
[356813859,1743239444700,-3480.5219082,0.0005099,4]
[356813860,1743239444711,-279.09938607,0.0005099,4]
[356813880,1743239445516,-8436.04402044,0.0005099,4]
[356813897,1743239445678,-150.0,0.00050273,7]
[356813899,1743239445688,-7605.44784552,0.0005099,4]
[356813910,1743239445785,-4872.3651532,0.0005099,4]
[356813912,1743239445839,-586.35082347,0.0005099,4]
[356813913,1743239445850,-697.0,0.0005099,7]
[356813914,1743239445860,-170.49881255,0.0005099,30]
[356813915,1743239445870,-2563.34221628,0.0005099,4]
[356813920,1743240003183,899.46,0.00020101,30]
[356813927,1743240513368,-150.0,0.00014899,2]
[356814117,1743240570967,-323.69409435,0.00014899,2]
[356814118,1743240570996,-172.85733223,0.000149,2]
[356814120,1743240571023,-158.40015636,0.000149,2]
[356814121,1743240571052,-1139.36265738,0.000149,2]
[356814123,1743240571084,-1472.80918399,0.000149,2]
[356814131,1743240609487,-152.35,0.0001489,2]
[356814146,1743240631668,-14.31666666,0.0001489,2]
[356814147,1743240631678,-433.81199612,0.000149,2]
[356814153,1743240631775,-897.56422115,0.000149,2]
[356814154,1743240631832,-5496.06710402,0.000149,2]
[356814155,1743240631842,-3761.87663052,0.000149,2]
[356814156,1743240631852,-466.96912698,0.000149,2]
[356814157,1743240631861,-158.40015636,0.000149,2]
[356814158,1743240631871,-3761.87663049,0.00014933,2]
[356814159,1743240631880,-466.96912691,0.00014933,2]
[356814160,1743240631889,-3761.87663049,0.00014967,2]
[356814161,1743240631899,-466.96912691,0.00014967,2]
[356814162,1743240631909,-500.0,0.00014973,2]
[356814163,1743240631918,-12476.23823395,0.0001499,2]
[356814164,1743240631928,-191.14045213,0.00014999,2]
[356814165,1743240631937,-150.0,0.00014999,2]
[356814166,1743240631946,-150.0,0.00014999,2]
[356814167,1743240631955,-150.0,0.00014999,2]
[356814168,1743240631964,-150.0,0.00014999,2]
[356814169,1743240631974,-150.0,0.00014999,2]
[356814170,1743240631983,-150.0,0.00014999,2]
[356814171,1743240631994,-150.0,0.00014999,2]
[356814172,1743240632003,-150.0,0.00014999,2]
[356814173,1743240632012,-150.0,0.00014999,2]
[356814174,1743240632022,-150.0,0.00014999,2]
[356814175,1743240632031,-150.0,0.00014999,2]
[356814176,1743240632040,-150.0,0.00014999,2]
[356814177,1743240632049,-150.0,0.00014999,2]
[356814178,1743240632058,-192526.48475452,0.00015,2]
[356814180,1743240632070,-887.84992617,0.00015,2]
[356814183,1743240632081,-250.22877249,0.00015,2]
[356814185,1743240632093,-553.49929451,0.00015,2]
[356814187,1743240632104,-50433.31787,0.00015,2]
[356814189,1743240632115,-1510.76775694,0.00015,2]
[356814192,1743240632130,-261.94934089,0.00015,2]
[356814198,1743240637706,-610.94458626,0.00015,2]
[356814199,1743240637718,-1571.50376747,0.00015,2]
[356814200,1743240637759,-734.66713862,0.00015,2]
[356814201,1743240637925,-6107.54563059,0.00015,2]
[356814202,1743240637937,-19913.0265,0.00015,2]
[356814203,1743240637949,-886.16936274,0.00015,2]
[356814224,1743240639801,-748.28403802,0.00015,2]
[356814225,1743240639813,-2004.69357214,0.00015,2]
[356814226,1743240639827,-558.93122625,0.00015,2]
[356814227,1743240639840,-969.93441918,0.00015,2]
[356814228,1743240639912,-1431.37412263,0.00015,2]
[356814229,1743240639925,-2256.50655973,0.00015,2]
[356814230,1743240639937,-3594.43905136,0.00015,2]
[356814231,1743240639949,-1072.93763251,0.00015,2]
[356814232,1743240639961,-702.47844533,0.00015,2]
[356814233,1743240639974,-1399.79399091,0.00015,2]
[356814234,1743240640030,-767.96306138,0.00015,2]
[356814235,1743240640096,-3249.95340702,0.00015,2]
[356814236,1743240640127,-1542.07286355,0.00015,2]
[356814237,1743240640139,-10906.81012829,0.00015,2]
[356814238,1743240640160,-3537.03736615,0.00015,2]
[356814242,1743240642783,-284.74638608,0.00015,2]
[356814243,1743240642839,-447.27153168,0.00015,2]
[356814244,1743240642851,-2305.68935329,0.00015,2]
[356814245,1743240642863,-282.22400001,0.00015,2]
[356814246,1743240642874,-386.4901369,0.00015,2]
[356814247,1743240642886,-392.53922624,0.00015,2]
[356814248,1743240642897,-624.711,0.00015,2]
[356814249,1743240642912,-3910.97184496,0.00015,2]
[356814379,1743240644652,-562.94029799,0.00015,2]
[356814380,1743240644664,-43124.89221444,0.00015,2]
[356814381,1743240644677,-1635.41090626,0.00015,2]
[356814382,1743240644689,-1086.48280957,0.00015,2]
[356814383,1743240644701,-806.82038482,0.00015,2]
[356814384,1743240644714,-512.6900035,0.00015,2]
[356814385,1743240644725,-4785.95896218,0.00015,2]
[356814386,1743240644741,-835.04991627,0.00015,2]
[356814405,1743240645753,-4388.83591928,0.00015,2]
[356814407,1743240645765,-847.30583949,0.00015,2]
[356814408,1743240645778,-658.63300375,0.00015,2]
[356814409,1743240645808,-297.07580641,0.00015,2]
[356814410,1743240645864,-432.19494406,0.00015,2]
[356814411,1743240645975,-7594.14761544,0.00015,2]
[356814412,1743240646086,-668.30843146,0.00015,2]
[356814413,1743240646099,-342.40427678,0.00015,2]
[356814414,1743240646112,-343.53915486,0.00015,2]
[356814415,1743240646124,-13654.496,0.00015,2]
[356814416,1743240656598,-3500.0,0.00015,2]
[356814417,1743240724078,-153.95816816,0.00014899,2]
[356814419,1743240842437,-168.48,0.00014899,2]
[356814420,1743240996824,217.46460213,0.00015,20]
[356814421,1743241087505,6584.304969,7.945e-05,2]
[356814422,1743241108801,426.634,0.000147,2]
[356814423,1743241208602,1314.247432,7.945e-05,2]
[356814424,1743241343601,435.13196155,0.00014589,2]
[356814425,1743241507529,2558.404563,7.945e-05,2]
[356814426,1743241543881,157.03974,0.0001917,22]
[356814427,1743241543995,157.03975,0.0001948,22]
[356814428,1743241544115,157.03975,0.0002011,24]
[356814429,1743241544180,157.03975,0.000198,23]
[356814430,1743241544248,157.03975,0.0002042,24]
[356814431,1743241568094,2993.773611,7.945e-05,2]
[356814432,1743241627904,4598.306842,7.945e-05,2]
[356814443,1743241688424,2346.80866,7.945e-05,2]
[356814444,1743241688562,-150.0,0.0001489,2]
[356814445,1743241740603,-363.51621186,0.0001489,2]
[356814446,1743241740633,-125.56002225,0.00014899,2]
[356814450,1743241747901,1792.439065,7.945e-05,2]